bitfinex-derivatives/quotes_BNBF0:USTF0_20250603
["timestamp","ask_amount","ask_price","bid_price","bid_amount"]
[1748982273265,1.02729133,661.87,661.47,0.30235687]
[1748982273465,1.02729133,661.86,661.47,0.30235687]
[1748982273662,1.02729133,661.85,661.47,0.30235687]
[1748982273868,1.02729133,661.84,661.47,0.30235687]
[1748982274067,1.02729133,661.83,661.47,0.30235687]
[1748982274266,1.02729133,661.82,661.47,0.30235687]
[1748982274464,1.02729133,661.81,661.47,0.30235687]
[1748982274665,1.02729133,661.8,661.47,0.30235687]
[1748982274862,1.02729133,661.79,661.47,0.30235687]
[1748982275066,1.02729133,661.78,661.47,0.30235687]
[1748982275263,1.02729133,661.77,661.47,0.30235687]
[1748982275472,1.02729133,661.76,661.47,0.30235687]
[1748982275769,1.02729133,661.75,661.47,0.30235687]
[1748982275968,1.02729133,661.74,661.47,0.30235687]
[1748982276168,1.02729133,661.73,661.47,0.30235687]
[1748982276464,1.02729133,661.72,661.47,0.30235687]
[1748982276666,1.02773034,661.71,661.47,0.30235687]
[1748982276869,1.02773034,661.7,661.47,0.30235687]
[1748982277065,1.02773034,661.69,661.47,0.30235687]
[1748982277263,1.02773034,661.68,661.47,0.30235687]
[1748982277464,1.02773034,661.67,661.47,0.30235687]
[1748982277670,1.02773034,661.66,661.47,0.30235687]
[1748982277872,1.02773034,661.65,661.47,0.30235687]
[1748982278066,1.02773034,661.64,661.47,0.30235687]
[1748982278266,1.02773034,661.63,661.47,0.30235687]
[1748982278465,1.02773034,661.62,661.47,0.30235687]
[1748982278770,1.02773034,661.61,661.47,0.30235687]
[1748982278972,1.02773034,661.6,661.47,0.30235687]
[1748982279172,1.02773034,661.59,661.47,0.30235687]
[1748982279375,1.02773034,661.58,661.47,0.30235687]
[1748982279669,1.02773034,661.57,661.47,0.30235687]
[1748982279874,1.11732731,661.82,661.47,0.30235687]
[1748982280174,2.14649476,661.81,661.47,0.30235687]
[1748982280471,1.11732731,661.79,661.47,0.30235687]
[1748982280672,1.02916745,661.78,661.47,0.30235687]
[1748982280872,1.02916745,661.77,661.47,0.30235687]
[1748982281067,1.02916745,661.76,661.47,0.30235687]
[1748982281270,1.02916745,661.75,661.47,0.30235687]
[1748982281473,1.02916745,661.74,661.47,0.30235687]
[1748982281672,2.23209683,662.03,661.47,0.30235687]
[1748982281673,1.02916745,661.73,661.47,0.30235687]
[1748982281873,1.02916745,661.72,661.47,0.30235687]
[1748982282073,1.02916745,661.71,661.47,0.30235687]
[1748982282273,1.02916745,661.7,661.47,0.30235687]
[1748982282574,1.02916745,661.69,661.47,0.30235687]
[1748982282773,1.02916745,661.68,661.47,0.30235687]
[1748982282973,1.02916745,661.67,661.47,0.30235687]
[1748982283172,1.02916745,661.66,661.47,0.30235687]
[1748982283370,1.02916745,661.65,661.47,0.30235687]
[1748982283572,1.02916745,661.64,661.47,0.30235687]
[1748982283872,1.02916745,661.63,661.47,0.30235687]
[1748982284076,1.02916745,661.62,661.47,0.30235687]
[1748982284272,1.02916745,661.61,661.47,0.30235687]
[1748982284475,1.02916745,661.6,661.47,0.30235687]
[1748982284675,1.02916745,661.59,661.47,0.30235687]
[1748982284874,1.02916745,661.58,661.47,0.30235687]
[1748982285074,1.02916745,661.57,661.47,0.30235687]
[1748982285273,1.11732731,661.79,661.47,0.30235687]
[1748982285478,1.02949375,661.78,661.47,0.30235687]
[1748982285781,1.02949375,661.77,661.47,0.30235687]
[1748982285976,1.02949375,661.76,661.47,0.30235687]
[1748982286283,1.02949375,661.75,661.47,0.30235687]
[1748982286483,1.11732731,661.79,661.47,0.30235687]
[1748982286484,1.02949375,661.74,661.47,0.30235687]
[1748982286785,1.02949375,661.73,661.47,0.30235687]
[1748982287084,1.02949375,661.72,661.47,0.30235687]
[1748982287278,1.02949375,661.71,661.47,0.30235687]
[1748982287482,1.02949375,661.7,661.47,0.30235687]
[1748982287786,1.02949375,661.69,661.47,0.30235687]
[1748982287981,1.02949375,661.68,661.47,0.30235687]
[1748982288182,1.02949375,661.67,661.47,0.30235687]
[1748982288379,1.02949375,661.66,661.47,0.30235687]
[1748982288578,1.03091015,661.65,661.47,0.30235687]
[1748982288884,1.03091015,661.64,661.47,0.30235687]
[1748982289083,1.03091015,661.63,661.47,0.30235687]
[1748982289284,1.03091015,661.62,661.47,0.30235687]
[1748982289481,1.03091015,661.61,661.47,0.30235687]
[1748982289685,1.03091015,661.6,661.47,0.30235687]
[1748982289885,1.03091015,661.59,661.47,0.30235687]
[1748982290085,1.03091015,661.58,661.47,0.30235687]
[1748982290285,1.03091015,661.57,661.47,0.30235687]
[1748982290485,1.03091015,661.56,661.47,0.30235687]
[1748982290681,1.03091015,661.55,661.47,0.30235687]
[1748982290878,1.03091015,661.54,661.47,0.30235687]
[1748982291080,1.03091015,661.53,661.47,0.30235687]
[1748982291284,1.03091015,661.52,661.47,0.30235687]
[1748982291479,1.03091015,661.51,661.47,0.30235687]
[1748982291686,1.03091015,661.5,661.47,0.30235687]
[1748982291985,1.03091015,661.49,661.47,0.30235687]
[1748982292184,1.03091015,661.48,661.47,0.30235687]
[1748982292385,1.48806455,661.93,661.47,0.30235687]
[1748982292587,1.11852485,661.77,661.47,0.30235687]
[1748982292781,1.03047538,661.76,661.47,0.30235687]
[1748982292985,1.03047538,661.75,661.47,0.30235687]
[1748982293287,1.03047538,661.74,661.47,0.30235687]
[1748982293487,1.03047538,661.73,661.47,0.30235687]
[1748982293786,1.03047538,661.72,661.47,0.30235687]
[1748982293986,1.03047538,661.71,661.47,0.30235687]
[1748982294186,1.03047538,661.7,661.47,0.30235687]
[1748982294388,1.03047538,661.69,661.47,0.30235687]
[1748982294582,1.03047538,661.68,661.47,0.30235687]
[1748982294882,1.03047538,661.67,661.47,0.30235687]
[1748982295085,1.03047538,661.66,661.47,0.30235687]
[1748982295282,1.03047538,661.65,661.47,0.30235687]
[1748982295485,1.11852485,661.77,661.47,0.30235687]
[1748982295486,1.03047538,661.64,661.47,0.30235687]
[1748982295687,1.03047538,661.63,661.47,0.30235687]
[1748982295886,1.03047538,661.62,661.47,0.30235687]
[1748982296085,1.03047538,661.61,661.47,0.30235687]
[1748982296282,1.48806455,661.87,661.47,0.30235687]
[1748982296586,1.11876597,661.74,661.47,0.30235687]
[1748982296787,1.03082213,661.73,661.47,0.30235687]
[1748982296986,1.03082213,661.72,661.47,0.30235687]
[1748982297187,1.03082213,661.71,661.47,0.30235687]
[1748982297386,1.03082213,661.7,661.47,0.30235687]
[1748982297688,1.03082213,661.69,661.47,0.30235687]
[1748982297880,1.03082213,661.68,661.47,0.30235687]
[1748982298084,1.03082213,661.67,661.47,0.30235687]
[1748982298284,1.03082213,661.66,661.47,0.30235687]
[1748982298482,1.03082213,661.65,661.47,0.30235687]
[1748982298685,1.03082213,661.64,661.47,0.30235687]
[1748982298881,1.03082213,661.63,661.47,0.30235687]
[1748982299188,1.03082213,661.62,661.47,0.30235687]
[1748982299382,1.03082213,661.61,661.47,0.30235687]
[1748982299581,1.03082213,661.6,661.47,0.30235687]
[1748982299786,1.03082213,661.59,661.47,0.30235687]
[1748982299983,1.03082213,661.58,661.47,0.30235687]
[1748982300182,1.03082213,661.57,661.47,0.30235687]
[1748982300384,1.02873604,661.56,661.47,0.30235687]
[1748982300582,1.02873604,661.55,661.47,0.30235687]
[1748982300788,1.02873604,661.54,661.47,0.30235687]
[1748982300989,1.11893066,661.84,661.47,0.30235687]
[1748982301288,1.02887669,661.83,661.47,0.30235687]
[1748982301484,1.02887669,661.82,661.47,0.30235687]
[1748982301681,1.02887669,661.81,661.47,0.30235687]
[1748982301888,1.02887669,661.8,661.47,0.30235687]
[1748982302083,1.02887669,661.79,661.47,0.30235687]
[1748982302286,1.02887669,661.78,661.47,0.30235687]
[1748982302485,2.23209683,662.23,661.47,0.30235687]
[1748982302486,1.02887669,661.77,661.47,0.30235687]
[1748982302690,1.02824622,661.76,661.47,0.30235687]
[1748982302883,1.02824622,661.75,661.47,0.30235687]
[1748982303087,1.02826043,661.74,661.47,0.30235687]
[1748982303384,1.02826043,661.73,661.47,0.30235687]
[1748982303586,1.02826043,661.72,661.47,0.30235687]
[1748982303783,1.02826043,661.71,661.47,0.30235687]
[1748982303989,1.118945,661.9,661.47,0.30235687]
[1748982303990,1.02826043,661.7,661.47,0.30235687]
[1748982304287,1.02826043,661.69,661.47,0.30235687]
[1748982304488,1.02826043,661.68,661.47,0.30235687]
[1748982304690,1.02826043,661.67,661.47,0.30235687]
[1748982304884,1.02826043,661.66,661.47,0.30235687]
[1748982305084,1.118945,661.9,661.47,0.30235687]
[1748982305085,1.02826043,661.65,661.47,0.30235687]
[1748982305290,1.02826043,661.64,661.47,0.30235687]
[1748982305589,1.02826043,661.63,661.47,0.30235687]
[1748982305790,1.02826043,661.62,661.47,0.30235687]
[1748982305990,2.23209683,662.26,661.47,0.30235687]
[1748982305991,1.02826043,661.61,661.47,0.30235687]
[1748982306189,3.71005592,662.96,661.47,0.30235687]
[1748982306190,1.02826043,661.6,661.47,0.30235687]
[1748982306393,1.02826043,661.59,661.47,0.30235687]
[1748982306687,1.118945,661.87,661.47,0.30235687]
[1748982306688,1.11860998,661.87,661.47,0.30235687]
[1748982306892,1.02753922,661.86,661.47,0.30235687]
[1748982307092,1.02753922,661.85,661.47,0.30235687]
[1748982307290,1.02753922,661.84,661.47,0.30235687]
[1748982307494,1.02753922,661.83,661.47,0.30235687]
[1748982307696,1.02753922,661.82,661.47,0.30235687]
[1748982307896,1.02753922,661.81,661.47,0.30235687]
[1748982308191,1.02753922,661.8,661.47,0.30235687]
[1748982308497,1.02753922,661.79,661.47,0.30235687]
[1748982308692,1.02753922,661.78,661.47,0.30235687]
[1748982308897,1.02753922,661.77,661.47,0.30235687]
[1748982309096,1.02753922,661.76,661.47,0.30235687]
[1748982309298,1.02753922,661.75,661.47,0.30235687]
[1748982309492,1.02753922,661.74,661.47,0.30235687]
[1748982309696,1.02753922,661.73,661.47,0.30235687]
[1748982309900,1.02753922,661.72,661.47,0.30235687]
[1748982310197,1.02753922,661.71,661.47,0.30235687]
[1748982310394,1.02736308,661.7,661.47,0.30235687]
[1748982310594,1.02736308,661.69,661.47,0.30235687]
[1748982310796,1.11843914,661.86,661.47,0.30235687]
[1748982310797,1.02736308,661.68,661.47,0.30235687]
[1748982311095,1.02736308,661.67,661.47,0.30235687]
[1748982311401,1.02736308,661.66,661.47,0.30235687]
[1748982311595,1.02736308,661.65,661.47,0.30235687]
[1748982311799,1.02736308,661.64,661.47,0.30235687]
[1748982312000,1.02736308,661.63,661.47,0.30235687]
[1748982312299,1.02736308,661.62,661.47,0.30235687]
[1748982312494,1.02736308,661.61,661.47,0.30235687]
[1748982312698,1.02736308,661.6,661.47,0.30235687]
[1748982312899,1.11843914,661.87,661.47,0.30235687]
[1748982313099,1.02717735,661.86,661.47,0.30235687]
[1748982313295,1.02717735,661.85,661.47,0.30235687]
[1748982313498,1.11843914,661.87,661.47,0.30235687]
[1748982313499,1.02717735,661.84,661.47,0.30235687]
[1748982313696,1.02717735,661.83,661.47,0.30235687]
[1748982313899,1.02717735,661.82,661.47,0.30235687]
[1748982314100,1.02717735,661.81,661.47,0.30235687]
[1748982314294,1.02726675,661.8,661.47,0.30235687]
[1748982314496,1.02726675,661.79,661.47,0.30235687]
[1748982314699,1.02726675,661.78,661.47,0.30235687]
[1748982314900,1.02726675,661.77,661.47,0.30235687]
[1748982315100,1.11835224,661.84,661.47,0.30235687]
[1748982315101,1.02726675,661.76,661.47,0.30235687]
[1748982315295,1.02726675,661.75,661.47,0.30235687]
[1748982315500,1.02726675,661.74,661.47,0.30235687]
[1748982315698,1.02726675,661.73,661.47,0.30235687]
[1748982315901,1.02726675,661.72,661.47,0.30235687]
[1748982316097,1.02726675,661.71,661.47,0.30235687]
[1748982316302,1.02726675,661.7,661.47,0.30235687]
[1748982316502,1.02726675,661.69,661.47,0.30235687]
[1748982316702,1.02726675,661.68,661.47,0.30235687]
[1748982316999,1.02726675,661.67,661.47,0.30235687]
[1748982317198,1.02726675,661.66,661.47,0.30235687]
[1748982317398,1.02726675,661.65,661.47,0.30235687]
[1748982317602,1.02726675,661.64,661.47,0.30235687]
[1748982317897,1.02726675,661.63,661.47,0.30235687]
[1748982318101,1.02726675,661.62,661.47,0.30235687]
[1748982318304,1.02726675,661.61,661.47,0.30235687]
[1748982318499,1.11835224,661.85,661.47,0.30235687]
[1748982318806,1.02669087,661.84,661.47,0.30235687]
[1748982319099,1.02669087,661.83,661.47,0.30235687]
[1748982319299,3.71005592,662.66,661.47,0.30235687]
[1748982319300,1.02669087,661.82,661.47,0.30235687]
[1748982319502,1.02669087,661.81,661.47,0.30235687]
[1748982319703,1.02669087,661.8,661.47,0.30235687]
[1748982319899,1.02669087,661.79,661.47,0.30235687]
[1748982320203,1.02669087,661.78,661.47,0.30235687]
[1748982320404,1.02669087,661.77,661.47,0.30235687]
[1748982320705,1.02669087,661.76,661.47,0.30235687]
[1748982320900,1.02669087,661.75,661.47,0.30235687]
[1748982321102,1.02669087,661.74,661.47,0.30235687]
[1748982321305,1.02669087,661.73,661.47,0.30235687]
[1748982321502,1.02669087,661.72,661.47,0.30235687]
[1748982321807,1.02669087,661.71,661.47,0.30235687]
[1748982322005,1.02669087,661.7,661.47,0.30235687]
[1748982322204,1.02674114,661.69,661.47,0.30235687]
[1748982322404,1.02674114,661.68,661.47,0.30235687]
[1748982322605,1.02674114,661.67,661.47,0.30235687]
[1748982322810,1.02674114,661.66,661.47,0.30235687]
[1748982323003,1.02674114,661.65,661.47,0.30235687]
[1748982323205,1.02674114,661.64,661.47,0.30235687]
[1748982323403,2.23209683,662.14,661.47,0.30235687]
[1748982323404,1.02674114,661.63,661.47,0.30235687]
[1748982323610,1.02674114,661.62,661.47,0.30235687]
[1748982323810,1.02674114,661.61,661.47,0.30235687]
[1748982324108,1.11815032,661.87,661.47,0.30235687]
[1748982324309,1.02216836,661.86,661.47,0.30235687]
[1748982324503,1.02216836,661.85,661.47,0.30235687]
[1748982324707,1.02216836,661.84,661.47,0.30235687]
[1748982324906,1.02216836,661.83,661.47,0.30235687]
[1748982325107,1.02216836,661.82,661.47,0.30235687]
[1748982325407,1.02216836,661.81,661.47,0.30235687]
[1748982325604,1.02216836,661.8,661.47,0.30235687]
[1748982325807,1.11815032,661.86,661.47,0.30235687]
[1748982325808,1.02216836,661.79,661.47,0.30235687]
[1748982326006,1.48806455,662.0,661.47,0.30235687]
[1748982326211,1.11809134,661.85,661.47,0.30235687]
[1748982326513,1.02212664,661.84,661.47,0.30235687]
[1748982326711,1.11809134,661.85,661.47,0.30235687]
[1748982326712,1.02212664,661.83,661.47,0.30235687]
[1748982326910,1.02212664,661.82,661.47,0.30235687]
[1748982327110,1.02212664,661.81,661.47,0.30235687]
[1748982327313,1.02212664,661.8,661.47,0.30235687]
[1748982327611,1.02212664,661.79,661.47,0.30235687]
[1748982327809,1.02212664,661.78,661.47,0.30235687]
[1748982328007,1.02212664,661.77,661.47,0.30235687]
[1748982328210,1.02212664,661.76,661.47,0.30235687]
[1748982328411,1.11809134,661.86,661.47,0.30235687]
[1748982328412,1.02212664,661.75,661.47,0.30235687]
[1748982328712,1.02212664,661.74,661.47,0.30235687]
[1748982329007,1.02212664,661.73,661.47,0.30235687]
[1748982329212,1.02212664,661.72,661.47,0.30235687]
[1748982329411,1.11809134,661.83,661.47,0.30235687]
[1748982329412,1.02212664,661.71,661.47,0.30235687]
[1748982329604,1.02212664,661.7,661.47,0.30235687]
[1748982329809,1.02212664,661.69,661.47,0.30235687]
[1748982330010,1.48806455,661.94,661.47,0.30235687]
[1748982330207,1.11803968,661.83,661.47,0.30235687]
[1748982330513,2.14017152,661.82,661.47,0.30235687]
[1748982330713,1.02213184,661.81,661.47,0.30235687]
[1748982330914,1.02213184,661.8,661.47,0.30235687]
[1748982331111,1.02213184,661.79,661.47,0.30235687]
[1748982331312,1.02213184,661.78,661.47,0.30235687]
[1748982331613,1.02213184,661.77,661.47,0.30235687]
[1748982331816,1.02213184,661.76,661.47,0.30235687]
[1748982332013,1.02213184,661.75,661.47,0.30235687]
[1748982332309,1.48806455,661.98,661.47,0.30235687]
[1748982332310,1.02213184,661.74,661.47,0.30235687]
[1748982332508,1.11803968,661.87,661.47,0.30235687]
[1748982332509,1.02213184,661.73,661.47,0.30235687]
[1748982332711,1.02213184,661.72,661.47,0.30235687]
[1748982332909,1.02213184,661.71,661.47,0.30235687]
[1748982333109,1.02213184,661.7,661.47,0.30235687]
[1748982333309,1.02213184,661.69,661.47,0.30235687]
[1748982333615,1.02213184,661.68,661.47,0.30235687]
[1748982333808,1.02213184,661.67,661.47,0.30235687]
[1748982334013,1.0218367,661.66,661.47,0.30235687]
[1748982334211,1.11771328,661.86,661.47,0.30235687]
[1748982334409,1.48806455,661.98,661.47,0.30235687]
[1748982334410,1.02183702,661.85,661.47,0.30235687]
[1748982334716,1.11771328,661.87,661.47,0.30235687]
[1748982334717,1.02183702,661.84,661.47,0.30235687]
[1748982335011,1.02183702,661.83,661.47,0.30235687]
[1748982335214,1.02183702,661.82,661.47,0.30235687]
[1748982335513,1.02183702,661.81,661.47,0.30235687]
[1748982335714,1.02183702,661.8,661.47,0.30235687]
[1748982335913,1.02183702,661.79,661.47,0.30235687]
[1748982336114,1.02183702,661.78,661.47,0.30235687]
[1748982336309,1.02183702,661.77,661.47,0.30235687]
[1748982336514,1.02183702,661.76,661.47,0.30235687]
[1748982336714,1.02183702,661.75,661.47,0.30235687]
[1748982336913,1.02183702,661.74,661.47,0.30235687]
[1748982337110,1.11771328,661.87,661.47,0.30235687]
[1748982337111,1.02183702,661.73,661.47,0.30235687]
[1748982337309,1.02183702,661.72,661.47,0.30235687]
[1748982337507,1.02183702,661.71,661.47,0.30235687]
[1748982337712,1.02183702,661.7,661.47,0.30235687]
[1748982337911,1.02310055,661.69,661.47,0.30235687]
[1748982338112,1.02310055,661.68,661.47,0.30235687]
[1748982338310,1.02310055,661.67,661.47,0.30235687]
[1748982338510,1.02310055,661.66,661.47,0.30235687]
[1748982338709,1.11762784,661.86,661.47,0.30235687]
[1748982339013,1.02307071,661.85,661.47,0.30235687]
[1748982339209,1.11762784,661.86,661.47,0.30235687]
[1748982339210,1.02307071,661.84,661.47,0.30235687]
[1748982339411,1.02307071,661.83,661.47,0.30235687]
[1748982339613,1.02307071,661.82,661.47,0.30235687]
[1748982339815,1.02307071,661.81,661.47,0.30235687]
[1748982340017,1.02307071,661.8,661.47,0.30235687]
[1748982340315,1.02307071,661.79,661.47,0.30235687]
[1748982340515,1.02307071,661.78,661.47,0.30235687]
[1748982340717,1.02307071,661.77,661.47,0.30235687]
[1748982340917,1.02307071,661.76,661.47,0.30235687]
[1748982341117,1.02307071,661.75,661.47,0.30235687]
[1748982341420,1.02307071,661.74,661.47,0.30235687]
[1748982341713,1.02307071,661.73,661.47,0.30235687]
[1748982341917,1.02300261,661.72,661.47,0.30235687]
[1748982342118,1.02300261,661.71,661.47,0.30235687]
[1748982342317,1.02300261,661.7,661.47,0.30235687]
[1748982342518,1.02300261,661.69,661.47,0.30235687]
[1748982342818,1.02300261,661.68,661.47,0.30235687]
[1748982343117,1.02300261,661.67,661.47,0.30235687]
[1748982343417,1.02300261,661.66,661.47,0.30235687]
[1748982343618,1.11752174,661.85,661.47,0.30235687]
[1748982343820,2.14048001,661.84,661.47,0.30235687]
[1748982344013,1.02295827,661.83,661.47,0.30235687]
[1748982344213,1.02295827,661.82,661.47,0.30235687]
[1748982344419,1.02295827,661.81,661.47,0.30235687]
[1748982344620,1.02295827,661.8,661.47,0.30235687]
[1748982344821,1.02295827,661.79,661.47,0.30235687]
[1748982345116,1.02295827,661.78,661.47,0.30235687]
[1748982345315,1.02295827,661.77,661.47,0.30235687]
[1748982345520,1.02295827,661.76,661.47,0.30235687]
[1748982345716,1.02295827,661.75,661.47,0.30235687]
[1748982345916,1.0229284,661.74,661.47,0.30235687]
[1748982346146,1.0229284,661.73,661.47,0.30235687]
[1748982346320,1.0229284,661.72,661.47,0.30235687]
[1748982346517,1.0229284,661.71,661.47,0.30235687]
[1748982346716,1.0229284,661.7,661.47,0.30235687]
[1748982346921,1.0229284,661.69,661.47,0.30235687]
[1748982347124,1.0229284,661.68,661.47,0.30235687]
[1748982347322,1.0229284,661.67,661.47,0.30235687]
[1748982347622,1.0229284,661.66,661.47,0.30235687]
[1748982347815,1.0229284,661.65,661.47,0.30235687]
[1748982348017,1.11746287,661.84,661.47,0.30235687]
[1748982348218,1.01795173,661.83,661.47,0.30235687]
[1748982348422,1.01795173,661.82,661.47,0.30235687]
[1748982348723,1.01795173,661.81,661.47,0.30235687]
[1748982348918,1.01795173,661.8,661.47,0.30235687]
[1748982349117,1.01795173,661.79,661.47,0.30235687]
[1748982349322,1.01795173,661.78,661.47,0.30235687]
[1748982349519,1.01795173,661.77,661.47,0.30235687]
[1748982349723,1.01795173,661.76,661.47,0.30235687]
[1748982349923,1.01795173,661.75,661.47,0.30235687]
[1748982350227,1.01795173,661.74,661.47,0.30235687]
[1748982350522,1.01795173,661.73,661.47,0.30235687]
[1748982350721,1.01795173,661.72,661.47,0.30235687]
[1748982350924,1.01795173,661.71,661.47,0.30235687]
[1748982351125,1.01795173,661.7,661.47,0.30235687]
[1748982351320,1.11746287,661.82,661.47,0.30235687]
[1748982351321,1.01795173,661.69,661.47,0.30235687]
[1748982351529,1.01795173,661.68,661.47,0.30235687]
[1748982351721,1.01795173,661.67,661.47,0.30235687]
[1748982351920,1.01795173,661.66,661.47,0.30235687]
[1748982352120,1.01795173,661.65,661.47,0.30235687]
[1748982352322,1.01795173,661.64,661.47,0.30235687]
[1748982352522,1.01795173,661.63,661.47,0.30235687]
[1748982352725,1.01795173,661.62,661.47,0.30235687]
[1748982352925,1.11746287,661.81,661.47,0.30235687]
[1748982353122,1.0190558,661.8,661.47,0.30235687]
[1748982353426,1.0190558,661.79,661.47,0.30235687]
[1748982353623,1.0190558,661.78,661.47,0.30235687]
[1748982353821,1.01918215,661.77,661.47,0.30235687]
[1748982354127,1.01918215,661.76,661.47,0.30235687]
[1748982354328,1.01918215,661.75,661.47,0.30235687]
[1748982354626,1.01918215,661.74,661.47,0.30235687]
[1748982354821,1.01918215,661.73,661.47,0.30235687]
[1748982355028,1.01918215,661.72,661.47,0.30235687]
[1748982355327,1.01918215,661.71,661.47,0.30235687]
[1748982355527,1.01918215,661.7,661.47,0.30235687]
[1748982355826,1.01918215,661.69,661.47,0.30235687]
[1748982356025,3.71005592,662.44,661.47,0.30235687]
[1748982356026,1.01918215,661.68,661.47,0.30235687]
[1748982356225,1.01918215,661.67,661.47,0.30235687]
[1748982356425,1.01918215,661.66,661.47,0.30235687]
[1748982356626,1.01918215,661.65,661.47,0.30235687]
[1748982356825,1.01918215,661.64,661.47,0.30235687]
[1748982357023,1.01918215,661.63,661.47,0.30235687]
[1748982357226,1.01918215,661.62,661.47,0.30235687]
[1748982357527,1.01918215,661.61,661.47,0.30235687]
[1748982357728,1.01918215,661.6,661.47,0.30235687]
[1748982357924,1.11822988,661.79,661.47,0.30235687]
[1748982358122,1.02087595,661.78,661.47,0.30235687]
[1748982358428,1.02087595,661.77,661.47,0.30235687]
[1748982358622,1.02087595,661.76,661.47,0.30235687]
[1748982358828,1.02087595,661.75,661.47,0.30235687]
[1748982359123,1.02087595,661.74,661.47,0.30235687]
[1748982359326,1.02087595,661.73,661.47,0.30235687]
[1748982359528,1.02087595,661.72,661.47,0.30235687]
[1748982359730,1.02087595,661.71,661.47,0.30235687]
[1748982360031,1.02087595,661.7,661.47,0.30235687]
[1748982360329,1.02087595,661.69,661.47,0.30235687]
[1748982360529,1.02087595,661.68,661.47,0.30235687]
[1748982360733,1.02087595,661.67,661.47,0.30235687]
[1748982360925,1.02087595,661.66,661.47,0.30235687]
[1748982361129,1.01978579,661.65,661.47,0.30235687]
[1748982361330,1.01978579,661.64,661.47,0.30235687]
[1748982361529,1.01978579,661.63,661.47,0.30235687]
[1748982361724,1.01978579,661.62,661.47,0.30235687]
[1748982361928,1.01978579,661.61,661.47,0.30235687]
[1748982362130,1.01978579,661.6,661.47,0.30235687]
[1748982362429,1.11927,661.82,661.47,0.30235687]
[1748982362632,1.01980004,661.81,661.47,0.30235687]
[1748982362832,1.01980004,661.8,661.47,0.30235687]
[1748982363129,1.11927,661.82,661.47,0.30235687]
[1748982363130,1.01980004,661.79,661.47,0.30235687]
[1748982363329,1.01964356,661.78,661.47,0.30235687]
[1748982363532,1.01964356,661.77,661.47,0.30235687]
[1748982363735,1.01964356,661.76,661.47,0.30235687]
[1748982363932,1.01964356,661.75,661.47,0.30235687]
[1748982364130,1.01964356,661.74,661.47,0.30235687]
[1748982364336,1.01971169,661.73,661.47,0.30235687]
[1748982364636,1.01971169,661.72,661.47,0.30235687]
[1748982364832,1.01971169,661.71,661.47,0.30235687]
[1748982365037,1.01971169,661.7,661.47,0.30235687]
[1748982365336,1.11928866,661.84,661.47,0.30235687]
[1748982365337,1.01971169,661.69,661.47,0.30235687]
[1748982365538,1.01971169,661.68,661.47,0.30235687]
[1748982365738,1.01971169,661.67,661.47,0.30235687]
[1748982365938,1.01971169,661.66,661.47,0.30235687]
[1748982366236,1.01971169,661.65,661.47,0.30235687]
[1748982366437,1.01971169,661.64,661.47,0.30235687]
[1748982366637,1.01971169,661.63,661.47,0.30235687]
[1748982366839,1.01971169,661.62,661.47,0.30235687]
[1748982367132,1.01971169,661.61,661.47,0.30235687]
[1748982367338,1.01971169,661.6,661.47,0.30235687]
[1748982367637,1.02124969,661.59,661.47,0.30235687]
[1748982367834,1.11928866,661.84,661.47,0.30235687]
[1748982368038,1.02127708,661.83,661.47,0.30235687]
[1748982368235,1.02137666,661.82,661.47,0.30235687]
[1748982368538,1.11940657,661.84,661.47,0.30235687]
[1748982368539,1.02137666,661.81,661.47,0.30235687]
[1748982368840,1.02137666,661.8,661.47,0.30235687]
[1748982369039,1.02137666,661.79,661.47,0.30235687]
[1748982369239,1.02137666,661.78,661.47,0.30235687]
[1748982369539,1.02137666,661.77,661.47,0.30235687]
[1748982369738,1.02137666,661.76,661.47,0.30235687]
[1748982369934,1.02137666,661.75,661.47,0.30235687]
[1748982370140,1.11940657,661.84,661.47,0.30235687]
[1748982370141,1.02137666,661.74,661.47,0.30235687]
[1748982370439,1.02137666,661.73,661.47,0.30235687]
[1748982370641,1.02137666,661.72,661.47,0.30235687]
[1748982370939,1.02137666,661.71,661.47,0.30235687]
[1748982371138,1.02137666,661.7,661.47,0.30235687]
[1748982371335,1.02137666,661.69,661.47,0.30235687]
[1748982371539,1.02137666,661.68,661.47,0.30235687]
[1748982371841,1.02137666,661.67,661.47,0.30235687]
[1748982372136,1.48806455,661.96,661.47,0.30235687]
[1748982372333,1.1196377,661.83,661.47,0.30235687]
[1748982372538,1.02154602,661.82,661.47,0.30235687]
[1748982372837,1.02154602,661.81,661.47,0.30235687]
[1748982373034,1.02154602,661.8,661.47,0.30235687]
[1748982373338,1.02154602,661.79,661.47,0.30235687]
[1748982373540,1.02154602,661.78,661.47,0.30235687]
[1748982373838,1.02154602,661.77,661.47,0.30235687]
[1748982374041,1.02154602,661.76,661.47,0.30235687]
[1748982374339,1.02154602,661.75,661.47,0.30235687]
[1748982374535,1.02154602,661.74,661.47,0.30235687]
[1748982374738,1.02154602,661.73,661.47,0.30235687]
[1748982374933,1.02154602,661.72,661.47,0.30235687]
[1748982375136,1.02154602,661.71,661.47,0.30235687]
[1748982375334,1.02154602,661.7,661.47,0.30235687]
[1748982375534,1.02154602,661.69,661.47,0.30235687]
[1748982375739,1.02154602,661.68,661.47,0.30235687]
[1748982375939,1.48806455,661.91,661.47,0.30235687]
[1748982376137,1.11994905,661.8,661.47,0.30235687]
[1748982376354,1.02181862,661.79,661.47,0.30235687]